[Event "*** SCC Grand Prix: Titled Tuesday Blitz"]
[Site "Chess.com"]
[Date "2020.06.02"]
[Round "2"]
[White "Ariadna_Atreides"]
[Black "malandragem"]
[Result "0-1"]
[WhiteElo "2044"]
[BlackElo "2467"]
[TimeControl "180+1"]
[EndTime "10:18:07 PDT"]
[Termination "malandragem won by checkmate"]

1. d4 {[%clk 0:03:00.9]} 1... Nf6 {[%clk 0:02:59.9]} 2. Nf3 {[%clk 0:02:59.8]}
2... g6 {[%clk 0:03:00.3]} 3. c4 {[%clk 0:02:59.3]} 3... Bg7 {[%clk 0:03:00.5]}
4. Nc3 {[%clk 0:03:00]} 4... d6 {[%clk 0:03:00.9]} 5. e4 {[%clk 0:02:59.6]} 5...
O-O {[%clk 0:03:01.2]} 6. Be2 {[%clk 0:03:00.2]} 6... e5 {[%clk 0:03:01.5]} 7.
d5 {[%clk 0:03:00.3]} 7... a5 {[%clk 0:03:01.2]} 8. Bg5 {[%clk 0:03:00.1]} 8...
h6 {[%clk 0:03:00.9]} 9. Bh4 {[%clk 0:03:00.7]} 9... Na6 {[%clk 0:02:59.9]} 10.
Nd2 {[%clk 0:03:01.1]} 10... Qe8 {[%clk 0:02:59.4]} 11. O-O {[%clk 0:03:00.5]}
11... Nh7 {[%clk 0:02:58.1]} 12. f3 {[%clk 0:02:57.2]} 12... h5 {[%clk 0:02:55]}
13. a3 {[%clk 0:02:55.4]} 13... Bd7 {[%clk 0:02:54.5]} 14. Nb5 {[%clk
0:02:51.9]} 14... Bh6 {[%clk 0:02:45.6]} 15. Rb1 {[%clk 0:02:46.2]} 15... a4
{[%clk 0:02:36]} 16. Bf2 {[%clk 0:02:25.7]} 16... Qe7 {[%clk 0:02:32]} 17. Qc2
{[%clk 0:02:16]} 17... h4 {[%clk 0:02:29.8]} 18. Rfd1 {[%clk 0:02:13.5]} 18...
Bf4 {[%clk 0:02:19.8]} 19. Qxa4 {[%clk 0:02:07.6]} 19... Qg5 {[%clk 0:01:33.4]}
20. Nf1 {[%clk 0:01:54.7]} 20... f5 {[%clk 0:01:31.7]} 21. Qc2 {[%clk
0:01:46.9]} 21... Nf6 {[%clk 0:01:25.3]} 22. b4 {[%clk 0:01:35.2]} 22... Nh5
{[%clk 0:01:12.7]} 23. Qd3 {[%clk 0:01:27]} 23... Rf7 {[%clk 0:01:06.9]} 24. c5
{[%clk 0:01:26.1]} 24... Raf8 {[%clk 0:00:49.9]} 25. cxd6 {[%clk 0:01:25.6]}
25... Bxb5 {[%clk 0:00:50.1]} 26. Qxb5 {[%clk 0:01:24.7]} 26... cxd6 {[%clk
0:00:50.6]} 27. Qd3 {[%clk 0:01:21.2]} 27... fxe4 {[%clk 0:00:50.5]} 28. Qxe4
{[%clk 0:01:21]} 28... Nc7 {[%clk 0:00:42]} 29. b5 {[%clk 0:01:18.9]} 29... Ne8
{[%clk 0:00:42.2]} 30. Bd3 {[%clk 0:01:05.3]} 30... Rf6 {[%clk 0:00:33.9]} 31.
b6 {[%clk 0:01:03]} 31... Neg7 {[%clk 0:00:31.9]} 32. Rbc1 {[%clk 0:00:47]}
32... Nf5 {[%clk 0:00:32]} 33. Rc7 {[%clk 0:00:45]} 33... Nd4 {[%clk 0:00:32.3]}
34. Bxd4 {[%clk 0:00:41.1]} 34... exd4 {[%clk 0:00:32]} 35. Qe7 {[%clk
0:00:38.6]} 35... R8f7 {[%clk 0:00:19.7]} 36. Qe8+ {[%clk 0:00:36.5]} 36... Rf8
{[%clk 0:00:12.7]} 37. Qd7 {[%clk 0:00:20.8]} 37... R8f7 {[%clk 0:00:12.2]} 38.
Rc8+ {[%clk 0:00:17.1]} 38... Kg7 {[%clk 0:00:12]} 39. Qg4 {[%clk 0:00:11.2]}
39... Be3+ {[%clk 0:00:11.4]} 40. Nxe3 {[%clk 0:00:09.8]} 40... Qxe3+ {[%clk
0:00:12.3]} 41. Kh1 {[%clk 0:00:09.3]} 41... Nf4 {[%clk 0:00:13.2]} 42. Rb8
{[%clk 0:00:05.5]} 42... Nxd3 {[%clk 0:00:12.6]} 43. Qc8 {[%clk 0:00:03]} 43...
Nf2+ {[%clk 0:00:12.8]} 44. Kg1 {[%clk 0:00:03.2]} 44... Nh3+ {[%clk 0:00:10.3]}
45. Kh1 {[%clk 0:00:02.7]} 45... Qg1+ {[%clk 0:00:10.6]} 46. Rxg1 {[%clk
0:00:03.1]} 46... Nf2# {[%clk 0:00:11.3]} 0-1

[Event "*** SCC Grand Prix: Titled Tuesday Blitz"]
[Site "Chess.com"]
[Date "2020.06.02"]
[Round "2"]
[White "mbachez"]
[Black "Quaternitychess"]
[Result "0-1"]
[WhiteElo "2528"]
[BlackElo "2818"]
[TimeControl "180+1"]
[EndTime "10:18:08 PDT"]
[Termination "Quaternitychess won by checkmate"]

1. e4 {[%clk 0:03:00.9]} 1... d6 {[%clk 0:02:55.7]} 2. d4 {[%clk 0:03:00.1]}
2... Nf6 {[%clk 0:02:56.3]} 3. Nc3 {[%clk 0:02:59.5]} 3... Nbd7 {[%clk 0:02:57]}
4. Nf3 {[%clk 0:02:58.6]} 4... e5 {[%clk 0:02:57.5]} 5. Bc4 {[%clk 0:02:58.6]}
5... Be7 {[%clk 0:02:58]} 6. O-O {[%clk 0:02:57.1]} 6... O-O {[%clk 0:02:58.6]}
7. a4 {[%clk 0:02:56.9]} 7... a5 {[%clk 0:02:58.3]} 8. Re1 {[%clk 0:02:56.6]}
8... c6 {[%clk 0:02:58.9]} 9. dxe5 {[%clk 0:02:56.1]} 9... dxe5 {[%clk
0:02:58.7]} 10. Ba2 {[%clk 0:02:52.1]} 10... Qc7 {[%clk 0:02:58]} 11. Nh4 {[%clk
0:02:52]} 11... Nc5 {[%clk 0:02:46.5]} 12. Qf3 {[%clk 0:02:45.4]} 12... g6
{[%clk 0:02:06.5]} 13. Bh6 {[%clk 0:02:42.1]} 13... Re8 {[%clk 0:02:03.7]} 14.
Bg5 {[%clk 0:02:42.2]} 14... Bg4 {[%clk 0:02:02.2]} 15. Qg3 {[%clk 0:02:33.9]}
15... Be6 {[%clk 0:02:01.7]} 16. Nf5 {[%clk 0:02:10.1]} 16... Bd8 {[%clk
0:01:44.1]} 17. Nh6+ {[%clk 0:01:59.1]} 17... Kg7 {[%clk 0:01:40.6]} 18. Nf5+
{[%clk 0:01:54.1]} 18... Kh8 {[%clk 0:01:25.2]} 19. Nh6 {[%clk 0:01:50.2]} 19...
Bxa2 {[%clk 0:01:19.7]} 20. Rxa2 {[%clk 0:01:47.1]} 20... Ne6 {[%clk 0:01:18.6]}
21. Be3 {[%clk 0:01:32]} 21... Nh5 {[%clk 0:00:46.4]} 22. Qxe5+ {[%clk
0:01:26.4]} 22... f6 {[%clk 0:00:34.4]} 23. Qxc7 {[%clk 0:01:17.9]} 23... Bxc7
{[%clk 0:00:35.3]} 24. Raa1 {[%clk 0:01:15.6]} 24... Kg7 {[%clk 0:00:34]} 25.
Ng4 {[%clk 0:01:12.9]} 25... Rad8 {[%clk 0:00:33.2]} 26. f3 {[%clk 0:01:05.3]}
26... f5 {[%clk 0:00:19.5]} 27. Nf2 {[%clk 0:01:02.1]} 27... f4 {[%clk
0:00:18.9]} 28. Bc1 {[%clk 0:00:52.7]} 28... Nd4 {[%clk 0:00:18.9]} 29. Rb1
{[%clk 0:00:36.5]} 29... Nxc2 {[%clk 0:00:19.1]} 30. Rd1 {[%clk 0:00:35.7]}
30... Nf6 {[%clk 0:00:18.7]} 31. Nd3 {[%clk 0:00:30.3]} 31... g5 {[%clk
0:00:18.3]} 32. Kf1 {[%clk 0:00:28.5]} 32... Nd7 {[%clk 0:00:13.2]} 33. b3
{[%clk 0:00:28.5]} 33... Ne5 {[%clk 0:00:11.6]} 34. Nxe5 {[%clk 0:00:27.2]}
34... Bxe5 {[%clk 0:00:11.2]} 35. Rxd8 {[%clk 0:00:26.6]} 35... Rxd8 {[%clk
0:00:12.1]} 36. Bb2 {[%clk 0:00:25.9]} 36... Rd2 {[%clk 0:00:08.8]} 37. Rd1
{[%clk 0:00:19.8]} 37... Ne3+ {[%clk 0:00:07.5]} 38. Ke1 {[%clk 0:00:20.1]}
38... Rxb2 {[%clk 0:00:07.3]} 39. Ne2 {[%clk 0:00:19]} 39... Nxg2+ {[%clk
0:00:05.9]} 40. Kf2 {[%clk 0:00:19.5]} 40... Ne3 {[%clk 0:00:05.8]} 41. Rd7+
{[%clk 0:00:20]} 41... Kf6 {[%clk 0:00:06]} 42. Rxb7 {[%clk 0:00:20.3]} 42... g4
{[%clk 0:00:05.9]} 43. fxg4 {[%clk 0:00:20.2]} 43... Nxg4+ {[%clk 0:00:06.1]}
44. Kf3 {[%clk 0:00:20.7]} 44... Nxh2+ {[%clk 0:00:06.1]} 45. Kg2 {[%clk
0:00:21.1]} 45... f3+ {[%clk 0:00:07]} 46. Kh3 {[%clk 0:00:20.8]} 46... Rxe2
{[%clk 0:00:07.4]} 47. Rf7+ {[%clk 0:00:21.3]} 47... Kxf7 {[%clk 0:00:06.8]} 48.
Kh4 {[%clk 0:00:21.6]} 48... f2 {[%clk 0:00:07.2]} 49. Kh5 {[%clk 0:00:22.5]}
49... f1=Q {[%clk 0:00:08]} 50. Kh6 {[%clk 0:00:23.3]} 50... Qf6+ {[%clk
0:00:08.3]} 51. Kh5 {[%clk 0:00:23]} 51... Qg6+ {[%clk 0:00:08.6]} 52. Kh4
{[%clk 0:00:22.9]} 52... Qg4# {[%clk 0:00:08.6]} 0-1

[Event "*** SCC Grand Prix: Titled Tuesday Blitz"]
[Site "Chess.com"]
[Date "2020.06.02"]
[Round "2"]
[White "Oleksandr_Bortnyk"]
[Black "tvjosue"]
[Result "1-0"]
[WhiteElo "2963"]
[BlackElo "2580"]
[TimeControl "180+1"]
[EndTime "10:18:09 PDT"]
[Termination "Oleksandr_Bortnyk won on time"]

1. e4 {[%clk 0:03:00.9]} 1... c5 {[%clk 0:02:54.3]} 2. Be2 {[%clk 0:02:59.9]}
2... Nc6 {[%clk 0:02:52.8]} 3. f4 {[%clk 0:02:55.5]} 3... e6 {[%clk 0:02:51.9]}
4. Nf3 {[%clk 0:02:53.9]} 4... Nge7 {[%clk 0:02:51.3]} 5. d3 {[%clk 0:02:53.1]}
5... g6 {[%clk 0:02:50.7]} 6. O-O {[%clk 0:02:53.6]} 6... Bg7 {[%clk 0:02:50.5]}
7. c3 {[%clk 0:02:54.5]} 7... O-O {[%clk 0:02:45.6]} 8. Be3 {[%clk 0:02:54.7]}
8... d6 {[%clk 0:02:40.2]} 9. a4 {[%clk 0:02:45.7]} 9... Rb8 {[%clk 0:02:36.2]}
10. Qe1 {[%clk 0:02:39]} 10... a6 {[%clk 0:02:28.7]} 11. Kh1 {[%clk 0:02:01.8]}
11... f5 {[%clk 0:02:13]} 12. Qh4 {[%clk 0:01:56.3]} 12... b5 {[%clk 0:02:07.1]}
13. axb5 {[%clk 0:01:55.1]} 13... axb5 {[%clk 0:02:08]} 14. Nbd2 {[%clk
0:01:22.6]} 14... b4 {[%clk 0:02:04.8]} 15. Nc4 {[%clk 0:01:22.5]} 15... bxc3
{[%clk 0:01:57.5]} 16. bxc3 {[%clk 0:01:23.4]} 16... fxe4 {[%clk 0:01:51.3]} 17.
dxe4 {[%clk 0:01:22.2]} 17... d5 {[%clk 0:01:35]} 18. exd5 {[%clk 0:01:15.4]}
18... exd5 {[%clk 0:01:35.9]} 19. Nce5 {[%clk 0:01:13.4]} 19... Nxe5 {[%clk
0:01:34]} 20. fxe5 {[%clk 0:01:09.2]} 20... Qc7 {[%clk 0:01:27.8]} 21. Qf2
{[%clk 0:00:29.7]} 21... c4 {[%clk 0:00:53.2]} 22. Ra7 {[%clk 0:00:19.9]} 22...
Rb7 {[%clk 0:00:52.8]} 23. Rxb7 {[%clk 0:00:19.7]} 23... Qxb7 {[%clk 0:00:53.7]}
24. Bc5 {[%clk 0:00:16.9]} 24... Bg4 {[%clk 0:00:52.6]} 25. Qh4 {[%clk
0:00:13.6]} 25... Bxf3 {[%clk 0:00:52.3]} 26. Bxf3 {[%clk 0:00:13.8]} 26... Nf5
{[%clk 0:00:50.1]} 27. Qxc4 {[%clk 0:00:12.4]} 27... Ng3+ {[%clk 0:00:30.1]} 28.
hxg3 {[%clk 0:00:10.3]} 28... Rxf3 {[%clk 0:00:30.2]} 29. Qe2 {[%clk 0:00:07.4]}
29... Rxf1+ {[%clk 0:00:29.7]} 30. Qxf1 {[%clk 0:00:08.2]} 30... Qc7 {[%clk
0:00:26.5]} 31. Bd6 {[%clk 0:00:03.9]} 31... Qxc3 {[%clk 0:00:25.7]} 32. e6
{[%clk 0:00:04.2]} 32... Qf6 {[%clk 0:00:13.3]} 33. Qe2 {[%clk 0:00:04.4]} 33...
Qa1+ {[%clk 0:00:11.4]} 34. Kh2 {[%clk 0:00:04.6]} 34... Qb2 {[%clk 0:00:10.7]}
35. Qf1 {[%clk 0:00:01.7]} 35... Qf6 {[%clk 0:00:10.3]} 36. Qe1 {[%clk
0:00:01.7]} 36... Qc3 {[%clk 0:00:08.2]} 37. Qe2 {[%clk 0:00:01.7]} 37... Qb2
{[%clk 0:00:07.1]} 38. Qe3 {[%clk 0:00:02.4]} 38... Qd4 {[%clk 0:00:05.9]} 39.
Qb3 {[%clk 0:00:02.6]} 39... Qe4 {[%clk 0:00:02.1]} 40. Qb8+ {[%clk 0:00:02.6]}
1-0

[Event "*** SCC Grand Prix: Titled Tuesday Blitz"]
[Site "Chess.com"]
[Date "2020.06.02"]
[Round "2"]
[White "youngKID"]
[Black "Maksimus1998"]
[Result "1-0"]
[WhiteElo "2782"]
[BlackElo "2519"]
[TimeControl "180+1"]
[EndTime "10:18:09 PDT"]
[Termination "youngKID won by resignation"]

1. e4 {[%clk 0:03:00.9]} 1... d5 {[%clk 0:02:59.8]} 2. exd5 {[%clk 0:02:59.9]}
2... Nf6 {[%clk 0:02:59]} 3. Nf3 {[%clk 0:03:00]} 3... Nxd5 {[%clk 0:02:57.5]}
4. d4 {[%clk 0:02:59.3]} 4... Bf5 {[%clk 0:02:57.2]} 5. Bd3 {[%clk 0:02:56.6]}
5... Bxd3 {[%clk 0:02:56.1]} 6. Qxd3 {[%clk 0:02:57.5]} 6... e6 {[%clk
0:02:56.5]} 7. O-O {[%clk 0:02:49]} 7... Nc6 {[%clk 0:02:49.2]} 8. c4 {[%clk
0:02:40.9]} 8... Nf6 {[%clk 0:02:49.1]} 9. Nc3 {[%clk 0:02:35.4]} 9... Be7
{[%clk 0:02:47.9]} 10. a3 {[%clk 0:02:25.2]} 10... O-O {[%clk 0:02:41.1]} 11. d5
{[%clk 0:02:06.5]} 11... exd5 {[%clk 0:02:39.6]} 12. cxd5 {[%clk 0:02:06.8]}
12... h6 {[%clk 0:02:38.4]} 13. Qb5 {[%clk 0:01:31.6]} 13... a6 {[%clk
0:02:27.6]} 14. Qb3 {[%clk 0:01:31.6]} 14... Na5 {[%clk 0:02:26.9]} 15. Qa2
{[%clk 0:01:26.9]} 15... b5 {[%clk 0:02:21.7]} 16. Rd1 {[%clk 0:01:26.7]} 16...
Bd6 {[%clk 0:02:19.4]} 17. Be3 {[%clk 0:01:10.5]} 17... Re8 {[%clk 0:02:17.6]}
18. Bd4 {[%clk 0:01:05.8]} 18... Nc4 {[%clk 0:02:12.8]} 19. a4 {[%clk
0:01:00.8]} 19... Ne4 {[%clk 0:01:19.8]} 20. Nxe4 {[%clk 0:00:53.1]} 20... Rxe4
{[%clk 0:01:19.8]} 21. axb5 {[%clk 0:00:53.3]} 21... Nb6 {[%clk 0:01:18.3]} 22.
bxa6 {[%clk 0:00:45.9]} 22... Qd7 {[%clk 0:01:08.4]} 23. Qb3 {[%clk 0:00:27.1]}
23... Qf5 {[%clk 0:00:23.5]} 24. Bxb6 {[%clk 0:00:26.2]} 24... Rb4 {[%clk
0:00:23.6]} 25. Qxb4 {[%clk 0:00:05.7]} 25... Bxb4 {[%clk 0:00:23.4]} 26. Bxc7
{[%clk 0:00:06.1]} 26... Qc2 {[%clk 0:00:17.6]} 27. d6 {[%clk 0:00:05.4]} 27...
Bxd6 {[%clk 0:00:17.5]} 28. Bxd6 {[%clk 0:00:03.6]} 28... Rxa6 {[%clk
0:00:16.9]} 29. Be5 {[%clk 0:00:04.1]} 29... Re6 {[%clk 0:00:12.6]} 30. Rac1
{[%clk 0:00:03.5]} 30... Qb3 {[%clk 0:00:12.1]} 31. Nd4 {[%clk 0:00:03.3]} 31...
Qxb2 {[%clk 0:00:09.7]} 32. Nxe6 {[%clk 0:00:03.4]} 32... Qxe5 {[%clk
0:00:10.4]} 33. Rc8+ {[%clk 0:00:03.7]} 33... Kh7 {[%clk 0:00:11]} 34. Nf8+
{[%clk 0:00:04.4]} 34... Kg8 {[%clk 0:00:10.7]} 35. Nd7+ {[%clk 0:00:05.3]} 1-0

[Event "*** SCC Grand Prix: Titled Tuesday Blitz"]
[Site "Chess.com"]
[Date "2020.06.02"]
[Round "2"]
[White "AwareIdea"]
[Black "carlesdc96"]
[Result "0-1"]
[WhiteElo "2504"]
[BlackElo "2761"]
[TimeControl "180+1"]
[EndTime "10:18:09 PDT"]
[Termination "carlesdc96 won on time"]

1. d4 {[%clk 0:03:00.9]} 1... e6 {[%clk 0:02:59.2]} 2. Nc3 {[%clk 0:03:00.8]}
2... d5 {[%clk 0:02:58.8]} 3. Bf4 {[%clk 0:03:00.9]} 3... Nf6 {[%clk 0:02:57.9]}
4. e3 {[%clk 0:03:01]} 4... a6 {[%clk 0:02:56.7]} 5. a3 {[%clk 0:03:00.5]} 5...
c5 {[%clk 0:02:54.7]} 6. Nf3 {[%clk 0:02:59.7]} 6... Nc6 {[%clk 0:02:54.8]} 7.
Be2 {[%clk 0:02:57.3]} 7... Bd6 {[%clk 0:02:54.4]} 8. Bg3 {[%clk 0:02:53.6]}
8... O-O {[%clk 0:02:53.8]} 9. O-O {[%clk 0:02:53.4]} 9... b5 {[%clk 0:02:51.2]}
10. dxc5 {[%clk 0:02:46.1]} 10... Bxc5 {[%clk 0:02:49.5]} 11. Bd3 {[%clk
0:02:45.8]} 11... Bb7 {[%clk 0:02:42.4]} 12. e4 {[%clk 0:02:45.6]} 12... dxe4
{[%clk 0:01:28.6]} 13. Nxe4 {[%clk 0:02:46.5]} 13... Nxe4 {[%clk 0:01:27.9]} 14.
Bxe4 {[%clk 0:02:47.4]} 14... h6 {[%clk 0:01:23.7]} 15. Ne5 {[%clk 0:02:30.4]}
15... Qc8 {[%clk 0:00:49.8]} 16. Qd7 {[%clk 0:01:53.3]} 16... Nxe5 {[%clk
0:00:44.7]} 17. Qxb7 {[%clk 0:01:52.1]} 17... Qxb7 {[%clk 0:00:44.7]} 18. Bxb7
{[%clk 0:01:53]} 18... Ra7 {[%clk 0:00:45.6]} 19. Be4 {[%clk 0:01:46]} 19... Nc4
{[%clk 0:00:44.9]} 20. b3 {[%clk 0:01:08.6]} 20... Nd2 {[%clk 0:00:44.4]} 21.
Rfe1 {[%clk 0:01:06.9]} 21... Nxe4 {[%clk 0:00:44.5]} 22. Rxe4 {[%clk
0:01:07.8]} 22... Rd8 {[%clk 0:00:44.4]} 23. a4 {[%clk 0:00:57]} 23... Rad7
{[%clk 0:00:41.1]} 24. Kf1 {[%clk 0:00:43]} 24... Rd2 {[%clk 0:00:31.8]} 25. Re2
{[%clk 0:00:32.7]} 25... Bb4 {[%clk 0:00:20.9]} 26. Rxd2 {[%clk 0:00:27.6]}
26... Rxd2 {[%clk 0:00:19.7]} 27. axb5 {[%clk 0:00:27.8]} 27... axb5 {[%clk
0:00:19.5]} 28. c4 {[%clk 0:00:27.7]} 28... bxc4 {[%clk 0:00:19.3]} 29. bxc4
{[%clk 0:00:28.6]} 29... Rc2 {[%clk 0:00:19.9]} 30. Ra8+ {[%clk 0:00:27.9]}
30... Kh7 {[%clk 0:00:19.6]} 31. Rc8 {[%clk 0:00:27.8]} 31... g5 {[%clk
0:00:13.7]} 32. Rc7 {[%clk 0:00:22.2]} 32... Kg6 {[%clk 0:00:13.5]} 33. h4
{[%clk 0:00:21.1]} 33... f5 {[%clk 0:00:10.3]} 34. hxg5 {[%clk 0:00:20.1]} 34...
hxg5 {[%clk 0:00:11.2]} 35. Be5 {[%clk 0:00:20.1]} 35... f4 {[%clk 0:00:11.3]}
36. f3 {[%clk 0:00:13.7]} 36... Kf5 {[%clk 0:00:11.2]} 37. Bd4 {[%clk
0:00:11.2]} 37... e5 {[%clk 0:00:11.1]} 38. Bf2 {[%clk 0:00:10.6]} 38... g4
{[%clk 0:00:10.2]} 39. fxg4+ {[%clk 0:00:04.3]} 39... Kxg4 {[%clk 0:00:10.3]}
40. Rg7+ {[%clk 0:00:03.3]} 40... Kf5 {[%clk 0:00:10.1]} 41. Rf7+ {[%clk
0:00:03.4]} 41... Ke6 {[%clk 0:00:10.5]} 42. Rc7 {[%clk 0:00:03.6]} 42... e4
{[%clk 0:00:10.7]} 43. Rc6+ {[%clk 0:00:03.1]} 43... Kf5 {[%clk 0:00:10.7]} 44.
Bd4 {[%clk 0:00:01.8]} 44... e3 {[%clk 0:00:10.1]} 0-1

[Event "*** SCC Grand Prix: Titled Tuesday Blitz"]
[Site "Chess.com"]
[Date "2020.06.02"]
[Round "2"]
[White "Efremov_Vlad"]
[Black "OhanyanEminChess"]
[Result "0-1"]
[WhiteElo "2160"]
[BlackElo "2407"]
[TimeControl "180+1"]
[EndTime "10:18:09 PDT"]
[Termination "OhanyanEminChess won on time"]

1. d4 {[%clk 0:03:00.9]} 1... Nf6 {[%clk 0:02:59.4]} 2. c4 {[%clk 0:03:00.3]}
2... c5 {[%clk 0:02:35.3]} 3. d5 {[%clk 0:02:57.7]} 3... b5 {[%clk 0:02:35.6]}
4. cxb5 {[%clk 0:02:57.7]} 4... a6 {[%clk 0:02:36.2]} 5. bxa6 {[%clk 0:02:56.8]}
5... g6 {[%clk 0:02:35.4]} 6. Nc3 {[%clk 0:02:56.9]} 6... Bg7 {[%clk 0:02:35.9]}
7. e4 {[%clk 0:02:54.8]} 7... O-O {[%clk 0:02:35.9]} 8. Nf3 {[%clk 0:02:53.5]}
8... d6 {[%clk 0:02:33.3]} 9. Bd3 {[%clk 0:02:35.5]} 9... Qa5 {[%clk 0:02:31]}
10. O-O {[%clk 0:02:34.9]} 10... Bxa6 {[%clk 0:02:30.3]} 11. Bxa6 {[%clk
0:02:02.1]} 11... Qxa6 {[%clk 0:02:31.2]} 12. e5 {[%clk 0:01:56.7]} 12... Ng4
{[%clk 0:02:26.4]} 13. exd6 {[%clk 0:01:53.8]} 13... exd6 {[%clk 0:02:27.3]} 14.
h3 {[%clk 0:01:48.6]} 14... Ne5 {[%clk 0:02:26.1]} 15. Bf4 {[%clk 0:01:42.5]}
15... Nbd7 {[%clk 0:02:16.6]} 16. Nxe5 {[%clk 0:01:24.1]} 16... Nxe5 {[%clk
0:02:17.5]} 17. Qc2 {[%clk 0:01:15.6]} 17... Rfb8 {[%clk 0:02:12.2]} 18. Bxe5
{[%clk 0:01:04.4]} 18... Bxe5 {[%clk 0:02:11.2]} 19. a4 {[%clk 0:01:02.4]} 19...
Qc4 {[%clk 0:02:09.1]} 20. Rfd1 {[%clk 0:00:44.6]} 20... Rb4 {[%clk 0:02:03.3]}
21. Ra3 {[%clk 0:00:34.9]} 21... Qa6 {[%clk 0:01:56.5]} 22. Rb1 {[%clk
0:00:20.4]} 22... Rc4 {[%clk 0:01:50.4]} 23. Qe2 {[%clk 0:00:16.1]} 23... Bxc3
{[%clk 0:01:20.7]} 24. bxc3 {[%clk 0:00:14.7]} 24... Rxa4 {[%clk 0:01:20.8]} 25.
Qxa6 {[%clk 0:00:14.6]} 25... R4xa6 {[%clk 0:01:21.5]} 26. Rxa6 {[%clk
0:00:14.6]} 26... Rxa6 {[%clk 0:01:22.4]} 27. c4 {[%clk 0:00:14]} 27... Kg7
{[%clk 0:01:18.9]} 28. Rb7 {[%clk 0:00:13.6]} 28... Kf6 {[%clk 0:01:18.1]} 29.
f4 {[%clk 0:00:13.3]} 29... h5 {[%clk 0:01:09.7]} 30. g3 {[%clk 0:00:12.4]}
30... h4 {[%clk 0:01:01.7]} 31. g4 {[%clk 0:00:11.6]} 31... Ra4 {[%clk
0:01:00.9]} 32. Rd7 {[%clk 0:00:10.7]} 32... Rxc4 {[%clk 0:00:56.6]} 33. Rxd6+
{[%clk 0:00:11.2]} 33... Kg7 {[%clk 0:00:55.5]} 34. Rc6 {[%clk 0:00:11.2]} 34...
Rxf4 {[%clk 0:00:53.5]} 35. Rxc5 {[%clk 0:00:10.8]} 35... Kf6 {[%clk 0:00:53.4]}
36. Ra5 {[%clk 0:00:09.7]} 36... Rd4 {[%clk 0:00:53.1]} 37. Kg2 {[%clk
0:00:09.9]} 37... Rd3 {[%clk 0:00:53.1]} 38. Ra6+ {[%clk 0:00:06.9]} 38... Kg5
{[%clk 0:00:51.5]} 39. Ra7 {[%clk 0:00:06.9]} 39... f6 {[%clk 0:00:51.3]} 40.
Rd7 {[%clk 0:00:06.8]} 40... Kf4 {[%clk 0:00:51]} 41. Rf7 {[%clk 0:00:06.8]}
41... Rd2+ {[%clk 0:00:51.3]} 42. Kh1 {[%clk 0:00:05]} 42... Ke5 {[%clk
0:00:51.6]} 43. Re7+ {[%clk 0:00:03.9]} 43... Kf4 {[%clk 0:00:51.8]} 44. Rf7
{[%clk 0:00:04.4]} 44... f5 {[%clk 0:00:50.6]} 45. gxf5 {[%clk 0:00:04.2]} 45...
gxf5 {[%clk 0:00:51.5]} 46. Kg1 {[%clk 0:00:02.7]} 46... Rxd5 {[%clk 0:00:51.1]}
47. Kf2 {[%clk 0:00:02.8]} 47... Rd2+ {[%clk 0:00:51.5]} 48. Kf1 {[%clk
0:00:02.5]} 48... Rh2 {[%clk 0:00:51.9]} 49. Rf6 {[%clk 0:00:02.4]} 49... Rxh3
{[%clk 0:00:52.3]} 50. Kg2 {[%clk 0:00:03]} 50... Ra3 {[%clk 0:00:52.5]} 51. Rh6
{[%clk 0:00:02.8]} 51... Kg4 {[%clk 0:00:51.6]} 52. Kh2 {[%clk 0:00:02.4]} 52...
Ra2+ {[%clk 0:00:51.5]} 53. Kg1 {[%clk 0:00:02.7]} 53... Kh3 {[%clk 0:00:52.4]}
54. Rf6 {[%clk 0:00:02.4]} 54... Ra5 {[%clk 0:00:52.2]} 55. Kf2 {[%clk
0:00:02.6]} 55... Kh2 {[%clk 0:00:51.2]} 56. Rh6 {[%clk 0:00:02.7]} 56... Kh3
{[%clk 0:00:51.4]} 57. Kg1 {[%clk 0:00:02.5]} 57... Ra4 {[%clk 0:00:50.7]} 58.
Kf2 {[%clk 0:00:02.6]} 58... Rf4+ {[%clk 0:00:50]} 59. Kg1 {[%clk 0:00:02.4]}
59... Kg3 {[%clk 0:00:50.6]} 60. Rg6+ {[%clk 0:00:02.1]} 60... Rg4 {[%clk
0:00:51.2]} 61. Rh6 {[%clk 0:00:02.2]} 61... f4 {[%clk 0:00:51.6]} 62. Kf1
{[%clk 0:00:02.4]} 62... f3 {[%clk 0:00:52.1]} 63. Rh5 {[%clk 0:00:02]} 63... h3
{[%clk 0:00:52.7]} 0-1